bitfinex/quotes_SOLUSD_20240808
["timestamp","ask_amount","ask_price","bid_price","bid_amount"]
[1723159144946,6.163,162.26,162.23,45.0]
[1723159145112,55.6146,162.29,162.18,31.5601]
[1723159145440,26.1625,162.28,162.21,6.1647]
[1723159145607,20.0,162.28,162.21,15.4119]
[1723159145811,40.21,162.32,162.22,1.23240572]
[1723159145812,46.371,162.32,162.22,1.23240572]
[1723159146035,20.0,162.31,162.24,15.4091]
[1723159146213,20.0,162.31,162.26,6.1629]
[1723159146421,26.1611,162.31,162.27,46.23228509]
[1723159146645,6.1606,162.33,162.27,6.1625]
[1723159146951,46.181,162.41,162.3,6.1614]
[1723159147119,46.181,162.41,162.31,45.0]
[1723159147319,46.181,162.41,162.32,1.23190051]
[1723159147558,6.1595,162.35,162.31,45.0]
[1723159147726,15.3963,162.38,162.31,45.0]
[1723159147923,6.161,162.31,162.27,6.156]
[1723159148215,6.161,162.31,162.28,45.0]
[1723159148644,40.21,162.36,162.28,45.0]
[1723159148847,33.15059351,162.41,162.28,45.0]
[1723159148848,6.1596,162.35,162.29,6.1617]
[1723159149016,6.1596,162.35,162.3,45.0]
[1723159149215,33.15059351,162.41,162.3,51.1613]
[1723159149216,6.1591,162.36,162.3,51.1613]
[1723159149642,55.6052,162.39,162.3,45.0]
[1723159149844,40.21,162.36,162.27,6.156]
[1723159150045,55.6111,162.33,162.22,6.4893]
[1723159150361,40.21,162.36,162.23,1.23225746]
[1723159150549,20.0,162.35,162.3,15.4035]
[1723159150740,40.21,162.39,162.3,15.4035]
[1723159151047,6.1608,162.32,162.26,21.5694]
[1723159151213,6.1608,162.32,162.27,45.0]
[1723159151419,15.3969,162.38,162.26,21.5694]
[1723159151615,6.1606,162.33,162.26,21.5694]
[1723159151925,6.1606,162.33,162.28,6.1621]
[1723159152121,40.21,162.39,162.29,15.4044]
[1723159152437,20.0,162.38,162.31,6.161]
[1723159152612,55.6028,162.42,162.32,15.4016]
[1723159152818,6.1595,162.35,162.28,37.5737]
[1723159153018,6.1606,162.32,162.28,16.0074]
[1723159153220,6.1602,162.34,162.28,16.0074]
[1723159153446,6.1604,162.33,162.28,22.1694]
[1723159153752,6.1603,162.33,162.28,16.0074]
[1723159153928,40.21,162.33,162.22,22.5153]
[1723159154246,40.21,162.33,162.25,6.1629]
[1723159154546,6.1602,162.33,162.27,6.1621]
[1723159154949,6.1602,162.33,162.25,15.408]
[1723159155141,55.6086,162.36,162.27,6.1624]
[1723159155445,20.0,162.35,162.28,45.0]
[1723159155621,26.1598,162.35,162.29,6.1617]
[1723159155830,26.1598,162.35,162.3,45.0]
[1723159156026,6.1599,162.34,162.3,45.0]
[1723159156452,6.1603,162.33,162.3,45.0]
[1723159156751,6.161,162.31,162.26,6.1628]
[1723159157051,20.0,162.35,162.25,6.1633]
[1723159157220,6.1576,162.41,162.36,6.1591]
[1723159157419,0.8465128,162.45,162.37,1.2314485]
[1723159157617,6.1561,162.44,162.39,6.1579]
[1723159157821,6.1561,162.44,162.4,1.2312109]
[1723159158046,32.79,162.44,162.37,7.38990998]
[1723159158251,6.1568,162.43,162.38,45.0]
[1723159158549,6.1568,162.43,162.38,51.1582]
[1723159158725,6.1568,162.43,162.39,1.23127064]
[1723159158927,38.9461,162.44,162.39,1.23127064]
[1723159159531,32.79,162.44,162.38,51.1582]
[1723159159732,0.8465128,162.45,162.43,6.1564]
[1723159159956,0.8465128,162.45,162.44,52.38697637]
[1723159160449,40.07,162.56,162.48,6.1544]
[1723159160648,40.07,162.56,162.46,15.3877]
[1723159160649,40.07,162.56,162.49,45.0]
[1723159160854,0.8465128,162.62,162.5,1.23034147]
[1723159161158,0.8465128,162.62,162.55,6.1518]
[1723159161335,0.8465128,162.62,162.56,46.22995412]
[1723159161661,0.8465128,162.62,162.56,52.38145412]
[1723159161967,6.9959128,162.62,162.56,52.38145412]
[1723159162261,0.8465128,162.62,162.56,46.22995412]
[1723159162463,6.9958128,162.62,162.56,52.38135412]
[1723159162846,6.1501,162.6,162.56,45.0]
[1723159163157,0.8465128,162.62,162.55,45.0]
[1723159163338,0.8465128,162.62,162.55,46.22987164]
[1723159163856,0.8465128,162.62,162.55,45.0]
[1723159164057,0.8465128,162.62,162.51,21.9825]
[1723159164238,40.07,162.61,162.51,21.9825]
[1723159164438,6.1516,162.56,162.51,21.9825]
[1723159164668,6.1524,162.54,162.51,15.9329]
[1723159164843,6.1523,162.54,162.48,6.1544]
[1723159165035,6.1518,162.56,162.47,16.61717209]
[1723159165236,0.8465128,162.62,162.5,15.3843]
[1723159165237,40.07,162.61,162.5,15.3843]
[1723159165448,20.0,162.6,162.5,15.3843]
[1723159165662,6.1519,162.56,162.49,6.1542]
[1723159165944,6.1519,162.56,162.5,6.1538]
[1723159166160,6.1525,162.54,162.49,15.3852]
[1723159166461,6.1515,162.57,162.49,15.3852]
[1723159166670,6.1515,162.57,162.49,16.61542815]
[1723159166963,6.1505,162.59,162.49,16.61542815]
[1723159167138,0.8465128,162.62,162.52,15.3824]
[1723159167464,0.8465128,162.62,162.53,1.22995718]
[1723159167767,0.8465128,162.62,162.53,46.22995718]
[1723159168061,6.1506,162.59,162.53,45.0]
[1723159168358,6.1523,162.54,162.53,45.0]
[1723159168562,40.07,162.61,162.53,45.0]
[1723159168563,6.1515,162.56,162.53,45.0]
[1723159168739,40.07,162.61,162.54,1.23031637]
[1723159169057,16.2202128,162.62,162.49,1.2302158]
[1723159169258,20.0,162.61,162.49,1.2302158]
[1723159169564,6.1512,162.57,162.49,1.2302158]
[1723159169935,20.0,162.61,162.49,52.3840158]
[1723159170134,20.0,162.61,162.5,6.1538]
[1723159170442,20.0,162.61,162.51,45.0]
[1723159170656,6.15,162.61,162.55,6.1518]
[1723159170837,0.8465128,162.62,162.56,46.22997082]
[1723159171258,0.8465128,162.62,162.57,21.6828]
[1723159171449,0.8465128,162.62,162.58,52.38004904]
[1723159171638,0.8465128,162.62,162.58,46.22964904]
[1723159171960,0.8465128,162.62,162.58,45.0]
[1723159172266,6.1502,162.6,162.58,45.0]
[1723159172561,0.8465128,162.62,162.58,45.0]
[1723159172765,0.8465128,162.62,162.5,15.3367]
[1723159172766,40.07,162.61,162.5,15.3367]
[1723159172942,55.4474,162.58,162.46,6.2415]
[1723159173354,40.07,162.61,162.48,15.3863]
[1723159173557,6.151,162.58,162.52,6.153]
[1723159173863,40.07,162.61,162.49,6.1542]
[1723159173864,6.1519,162.55,162.49,6.1542]
[1723159174377,40.07,162.58,162.46,6.2415]
[1723159174546,3.22493677,162.62,162.46,6.2415]
[1723159174547,40.07,162.55,162.46,6.2415]
[1723159174751,6.1538,162.5,162.46,6.2415]
[1723159174969,40.07,162.52,162.41,6.1568]
[1723159175143,40.07,162.52,162.42,6.1567]
[1723159175343,20.0,162.51,162.43,1.23097464]
[1723159175545,20.0,162.51,162.44,1.23093548]
[1723159175742,20.0,162.51,162.43,1.23077227]
[1723159175970,20.0,162.54,162.43,1.23077227]
[1723159176174,20.0,162.54,162.46,6.1553]
[1723159176175,6.153,162.52,162.46,6.1553]
[1723159176465,20.0,162.51,162.41,15.3924]
[1723159176761,6.155,162.47,162.41,21.5496]
[1723159177142,40.07,162.51,162.41,15.3924]
[1723159177454,6.1547,162.48,162.42,1.2309578]
[1723159177642,6.1547,162.48,162.42,7.3874578]
[1723159177843,6.155,162.47,162.41,21.5494]
[1723159178066,40.07,162.51,162.42,1.23107528]
[1723159178569,40.07,162.51,162.42,7.38787528]
[1723159178747,6.1545,162.49,162.42,7.38787528]
[1723159178946,46.2237,162.51,162.45,6.1555]
[1723159179163,6.153,162.53,162.47,6.1549]
[1723159179467,6.1532,162.52,162.46,6.1552]
[1723159179643,6.1532,162.52,162.47,45.0]
[1723159179839,20.0,162.54,162.47,51.1548]
[1723159180046,2.43124081,162.55,162.48,6.1545]
[1723159180279,55.4478,162.58,162.49,46.23054166]
[1723159180449,6.1523,162.54,162.49,46.23054166]
[1723159180644,55.4478,162.58,162.49,45.0]
[1723159180946,42.44603705,162.58,162.48,45.0]
[1723159181143,5.64370763,162.63,162.5,15.3843]
[1723159181346,6.1498,162.61,162.51,46.23013115]
[1723159181552,6.15,162.6,162.52,1.23002666]
[1723159181747,6.1497,162.61,162.55,6.1519]
[1723159182069,6.1479,162.66,162.6,6.1499]
[1723159182252,2.43341268,162.67,162.61,46.22972457]
[1723159182253,6.1481,162.65,162.61,46.22972457]
[1723159182455,6.1479,162.66,162.61,45.0]
[1723159182656,12.57653453,162.66,162.61,45.0]
[1723159182864,6.42863453,162.66,162.6,45.0]
[1723159183072,6.1496,162.61,162.55,15.3792]
[1723159183245,6.42863453,162.66,162.56,45.0]
[1723159183446,6.42863453,162.66,162.58,15.3768]
[1723159183758,40.07,162.76,162.66,15.3692]
[1723159183967,40.07,162.76,162.67,45.0]
[1723159184564,6.1464,162.7,162.67,45.0]
[1723159184872,6.1467,162.69,162.67,45.0]
[1723159185076,42.49387057,162.76,162.67,45.0]
[1723159185454,0.8465128,162.78,162.68,1.22914536]
[1723159185654,6.1441,162.76,162.69,6.1466]
[1723159185874,64.689331,162.88,162.71,21.9306]
[1723159185875,24.619331,162.88,162.71,21.9306]
[1723159186178,0.8465128,162.95,162.84,15.3524]
[1723159186385,0.8465128,162.95,162.8,15.3562]
[1723159186386,40.07,162.92,162.8,15.3562]
[1723159186550,46.07,162.89,162.72,65.0]
[1723159186754,46.07,162.89,162.73,1.22831668]
[1723159187171,46.07,162.89,162.75,15.3601]
[1723159187375,6.141,162.84,162.77,6.1435]
[1723159187576,6.1414,162.83,162.76,6.1439]
[1723159187749,46.07,162.89,162.78,6.1431]
[1723159187750,6.1406,162.85,162.78,6.1431]
[1723159187961,6.1407,162.85,162.79,45.0]
[1723159188479,6.1418,162.82,162.79,45.0]
[1723159188673,6.1422,162.81,162.79,45.0]
[1723159188880,15.3491,162.88,162.71,21.9306]
[1723159188881,6.1425,162.8,162.71,37.2952]
[1723159189053,6.1429,162.79,162.71,37.2952]
[1723159189250,6.1437,162.77,162.71,30.8532]
[1723159189577,40.07,162.83,162.71,30.8532]
[1723159189878,6.1427,162.8,162.73,6.145]
[1723159190077,6.143,162.79,162.71,36.9988]
[1723159190288,20.0,162.82,162.69,6.1463]
[1723159190576,6.1467,162.69,162.64,16.0234]
[1723159190782,6.1461,162.71,162.64,16.0234]
[1723159190985,40.07,162.74,162.61,15.3734]
[1723159191153,40.07,162.8,162.58,6.1505]
[1723159191154,40.07,162.71,162.58,6.1505]
[1723159191355,20.0,162.7,162.58,6.1505]
[1723159191882,6.1472,162.68,162.61,6.1494]
[1723159192085,20.0,162.7,162.57,22.1971]
[1723159192251,20.0,162.7,162.61,15.374]
[1723159192458,40.07,162.7,162.51,6.1737]
[1723159192681,40.07,162.67,162.51,6.1737]
[1723159192979,6.148,162.66,162.58,6.1507]
[1723159193174,20.0,162.65,162.55,1.2297689]
[1723159193374,26.1482,162.65,162.59,15.3759]
[1723159193787,20.0,162.65,162.59,21.5261]
[1723159194081,20.0,162.66,162.59,21.5261]
[1723159194460,20.0,162.66,162.59,15.3759]
[1723159194660,20.0,162.69,162.59,15.3759]
[1723159194957,20.0,162.69,162.55,15.3796]
[1723159195162,40.07,162.67,162.51,21.5571]
[1723159195395,20.0,162.66,162.51,21.5571]
[1723159196197,20.0,162.66,162.55,15.3797]
[1723159196358,6.1488,162.64,162.56,6.1515]
[1723159196558,6.149,162.63,162.56,6.1513]
[1723159196877,20.0,162.66,162.55,15.3797]
[1723159196878,6.1495,162.62,162.55,15.3797]
[1723159197081,20.0,162.66,162.51,6.1737]
[1723159197274,20.0,162.66,162.53,6.1526]
[1723159197463,6.1496,162.62,162.54,6.1522]
[1723159197790,20.0,162.66,162.53,15.3811]
[1723159198261,6.1486,162.64,162.54,46.2300068]
[1723159198455,20.0,162.66,162.56,15.3781]
[1723159198652,20.0,162.69,162.57,45.0]
[1723159198856,6.1473,162.68,162.59,6.1503]
[1723159199085,40.07,162.7,162.6,45.0]
[1723159199293,40.07,162.7,162.57,45.0]
[1723159199796,6.1482,162.65,162.57,45.0]
[1723159199963,6.1478,162.66,162.58,1.22969374]
[1723159200164,40.07,162.7,162.57,45.0]
[1723159200165,20.0,162.65,162.57,45.0]
[1723159200378,15.3685,162.67,162.55,6.1519]
[1723159200596,6.1505,162.59,162.52,21.5353]
[1723159200765,20.0,162.69,162.52,1.23009348]
[1723159200964,20.0,162.7,162.52,1.23009348]
[1723159201190,6.1465,162.7,162.54,60.07]
[1723159201389,61.6963,162.72,162.58,6.1507]
[1723159201585,6.1486,162.64,162.58,6.1507]
[1723159201787,15.3674,162.69,162.56,15.3781]
[1723159201993,6.1487,162.64,162.56,15.3781]
[1723159202164,6.1489,162.63,162.57,6.1509]
[1723159202368,15.3674,162.69,162.54,6.1522]
[1723159202567,6.1495,162.62,162.55,6.1518]
[1723159202782,20.0,162.68,162.55,6.1518]
[1723159202783,6.1498,162.61,162.55,6.1518]
[1723159203094,6.1488,162.64,162.56,6.1514]
[1723159203392,6.1488,162.64,162.55,15.3794]
[1723159203595,46.3318,162.72,162.51,90.8365]
[1723159203596,6.1464,162.7,162.64,6.1485]
[1723159203822,6.2618,162.72,162.62,21.5221]
[1723159204100,6.1484,162.65,162.59,6.1504]
[1723159204295,15.3663,162.7,162.6,45.0]
[1723159204878,6.1476,162.67,162.6,45.0]
[1723159205191,6.147,162.68,162.62,6.1492]
[1723159205492,6.1465,162.7,162.63,51.1488]
[1723159205699,6.2618,162.72,162.63,45.0]
[1723159205875,6.42476436,162.73,162.62,45.0]
[1723159206069,6.1478,162.66,162.62,45.0]
[1723159206273,6.1485,162.64,162.61,45.0]
[1723159206576,6.1479,162.66,162.61,45.0]
[1723159206781,6.1479,162.66,162.61,46.22969312]
[1723159206982,15.3651,162.71,162.61,51.1496]
[1723159207171,6.1467,162.69,162.61,45.0]
[1723159207384,6.42476436,162.73,162.63,15.372]
[1723159207588,20.0,162.72,162.64,45.0]
[1723159208176,35.3644,162.72,162.59,15.3754]
[1723159208374,35.3644,162.72,162.47,20.0]
[1723159208375,60.07,162.72,162.55,21.6684]
[1723159208581,15.3668,162.69,162.55,21.6684]
[1723159208881,6.1476,162.67,162.6,6.1499]
[1723159209073,6.1476,162.67,162.61,6.1496]
[1723159209275,6.1476,162.67,162.56,31.98753616]
[1723159209276,21.8756,162.77,162.63,40.07]
[1723159209476,15.356,162.81,162.7,6.1459]
[1723159209796,15.356,162.81,162.71,45.0]
[1723159210272,6.144,162.77,162.71,45.0]
[1723159210467,15.356,162.81,162.71,45.0]
[1723159210674,6.2119,162.82,162.71,45.0]
[1723159210869,6.2119,162.82,162.68,6.4813]
[1723159211068,70.783,162.8,162.62,6.4813]
[1723159211282,6.1457,162.72,162.65,6.148]
[1723159211492,6.1457,162.72,162.66,6.1477]
[1723159211667,6.1457,162.72,162.65,6.1481]
[1723159211872,15.3602,162.76,162.64,6.1485]
[1723159212192,6.1447,162.75,162.69,6.1466]
[1723159212493,6.1441,162.76,162.7,6.1462]
[1723159212690,6.2119,162.82,162.71,60.3644]
[1723159213066,6.2119,162.82,162.72,1.22875713]
[1723159213271,6.1424,162.81,162.74,6.1447]
[1723159213592,6.1421,162.82,162.75,45.0]
[1723159213896,6.1421,162.82,162.75,46.22867033]
[1723159214075,40.07,162.86,162.75,45.0]
[1723159214288,40.07,162.86,162.72,16.4018]
[1723159214488,6.1424,162.81,162.73,60.3627]
[1723159215393,6.1424,162.81,162.75,6.1441]
[1723159215593,6.1424,162.81,162.76,45.0]
[1723159215788,6.1432,162.78,162.76,45.0]
[1723159215990,15.3534,162.83,162.72,16.4018]
[1723159216189,15.3568,162.8,162.69,15.3659]
[1723159216392,20.0,162.79,162.69,15.3659]
[1723159216599,6.1433,162.78,162.72,6.1455]
[1723159216903,6.1436,162.77,162.71,6.1458]
[1723159217309,30.7123,162.81,162.66,15.0477]
[1723159217515,30.7123,162.81,162.69,6.1465]
[1723159217516,6.1447,162.74,162.69,6.1465]
[1723159217702,6.1447,162.74,162.68,21.5145]
[1723159217892,55.4251,162.82,162.68,15.3675]
[1723159218082,6.1444,162.75,162.68,15.3675]
[1723159218283,15.3573,162.79,162.66,15.0477]
[1723159218583,20.0,162.81,162.67,16.59716096]
[1723159218800,20.0,162.81,162.68,45.0]
[1723159219009,20.0,162.81,162.7,15.3652]
[1723159219210,6.1443,162.75,162.71,45.0]
[1723159220181,40.07,162.82,162.62,77.2974]
[1723159220402,40.07,162.82,162.67,1.22899427]
[1723159220403,6.144,162.76,162.67,1.22899427]
[1723159220706,6.144,162.76,162.66,45.7848]
[1723159220707,70.7748,162.85,162.68,41.29889703]
[1723159220913,70.7748,162.85,162.68,40.07]
[1723159221117,6.1448,162.74,162.68,21.5141]
[1723159221282,6.1448,162.74,162.66,15.0477]
[1723159221283,15.3593,162.77,162.66,15.0477]
[1723159221482,6.1455,162.72,162.67,45.0]
[1723159221685,30.7048,162.85,162.66,15.0477]
[1723159221686,6.1421,162.81,162.71,40.07]
[1723159221883,6.1421,162.81,162.74,21.5065]
[1723159222085,6.1426,162.8,162.74,15.3618]
[1723159222515,6.1428,162.79,162.75,1.22860959]
[1723159222704,15.3506,162.86,162.72,6.1454]
[1723159222907,15.3506,162.86,162.73,45.0]
[1723159223111,6.1436,162.77,162.73,45.0]
[1723159223328,70.7758,162.84,162.72,45.0]
[1723159223486,70.7758,162.84,162.66,30.4162]
[1723159223487,6.1448,162.74,162.67,6.1471]
[1723159223687,15.3566,162.8,162.68,45.0]
[1723159223888,15.3566,162.8,162.66,36.5637]
[1723159224193,6.1455,162.73,162.67,6.1473]
[1723159224613,6.1464,162.7,162.63,6.1489]
[1723159225010,21.5513,162.77,162.64,6.1484]
[1723159225310,6.1462,162.71,162.64,6.1484]
[1723159225529,6.1462,162.71,162.65,6.1481]
[1723159225721,21.5513,162.77,162.64,6.1485]
[1723159225722,6.1464,162.7,162.64,6.1485]
[1723159225926,21.5513,162.77,162.62,21.8539]
[1723159225927,15.3622,162.74,162.62,15.3726]
[1723159226110,6.1479,162.66,162.61,16.5112]
[1723159226424,15.3622,162.74,162.61,16.5112]
[1723159226718,6.147,162.69,162.62,6.1492]
[1723159227399,6.1462,162.7,162.63,6.1486]
[1723159227597,15.3622,162.74,162.64,51.1485]
[1723159227934,2.39334153,162.74,162.65,1.22954273]
[1723159228224,6.1462,162.71,162.64,66.5192]
[1723159228424,6.1469,162.69,162.64,45.0]
[1723159228727,6.1469,162.69,162.63,51.1488]
[1723159229104,6.1475,162.67,162.61,22.6608]
[1723159229518,6.147,162.69,162.62,6.1492]
[1723159229728,6.1471,162.68,162.62,6.1492]
[1723159230139,40.07,162.75,162.63,15.372]
[1723159230415,2.47486125,162.77,162.69,15.3664]
[1723159230729,6.143,162.79,162.73,6.1451]
[1723159231135,6.41779462,162.84,162.72,15.3636]
[1723159231434,6.1421,162.81,162.75,15.3604]
[1723159231633,6.41779462,162.84,162.75,15.3604]
[1723159232015,6.1435,162.78,162.71,15.3639]
[1723159232232,46.48779462,162.84,162.71,21.5097]
[1723159232433,46.48779462,162.84,162.72,45.0]
[1723159232631,46.48779462,162.84,162.74,15.3618]
[1723159232632,6.41779462,162.84,162.74,15.3618]
[1723159232834,6.1417,162.83,162.76,6.1439]
[1723159233144,6.41779462,162.84,162.77,6.1434]
[1723159233329,6.1414,162.83,162.76,6.144]
[1723159233529,6.1414,162.83,162.77,51.1435]
[1723159233738,6.0,162.89,162.8,15.3556]
[1723159233920,6.0,162.89,162.77,45.0]
[1723159234433,21.3483,162.89,162.77,45.0]
[1723159234623,6.1429,162.79,162.73,6.1451]
[1723159234824,6.1432,162.78,162.74,45.0]
[1723159235142,6.1432,162.78,162.72,21.5087]
[1723159235316,15.3539,162.83,162.69,6.1462]
[1723159235517,15.3539,162.83,162.7,6.1462]
[1723159235518,6.1439,162.77,162.7,6.1462]
[1723159235821,15.3566,162.8,162.64,15.3707]
[1723159236023,40.07,162.78,162.64,15.3707]
[1723159236246,35.3595,162.77,162.64,15.3707]
[1723159236444,15.3595,162.77,162.64,21.5192]
[1723159236771,6.1448,162.74,162.67,21.5148]
[1723159236961,48.79736312,162.81,162.67,15.3678]
[1723159237169,6.1444,162.75,162.67,15.3678]
[1723159237352,48.79736312,162.81,162.65,40.07]
[1723159237353,8.72736312,162.81,162.72,6.1453]
[1723159237550,8.54626312,162.81,162.75,6.1443]
[1723159237773,15.3512,162.86,162.73,22.73615971]
[1723159237979,15.3512,162.86,162.74,46.22875911]
[1723159238159,6.1429,162.79,162.74,45.0]
[1723159238363,6.1424,162.81,162.74,51.1446]
[1723159238550,6.1425,162.8,162.74,45.0]
[1723159238751,6.1425,162.8,162.75,1.22857449]
[1723159239061,6.1416,162.83,162.74,46.22857355]
[1723159239267,6.41617401,162.94,162.75,1.22844476]
[1723159239268,36.8114,162.92,162.75,1.22844476]
[1723159239481,2.40258557,162.91,162.74,85.07]
[1723159239645,40.07,162.9,162.74,45.0]
[1723159239850,6.1428,162.8,162.74,45.0]
[1723159240180,15.3519,162.85,162.74,51.1446]
[1723159240392,40.07,162.9,162.74,45.0]
[1723159240674,8.42578495,162.89,162.75,1.22853865]
[1723159240866,6.1409,162.85,162.75,1.22853865]
[1723159241064,6.14,162.87,162.8,6.1424]
[1723159241268,6.14,162.87,162.75,41.29853865]
[1723159241269,6.1419,162.82,162.75,15.3603]
[1723159241454,6.1406,162.85,162.78,6.1432]
[1723159241652,6.0,162.89,162.78,16.58568847]
[1723159241976,6.0,162.89,162.79,45.0]
[1723159242176,6.1414,162.83,162.79,45.0]
[1723159242487,6.144,162.77,162.71,6.1458]
[1723159242654,6.1432,162.79,162.71,6.1458]
[1723159242852,6.1432,162.78,162.72,21.909]
[1723159243048,6.144,162.76,162.72,15.7635]
[1723159243264,15.3546,162.82,162.68,6.1466]
[1723159243673,15.3573,162.79,162.67,6.2135]
[1723159244059,15.3573,162.79,162.66,32.96629046]
[1723159244261,6.1439,162.77,162.7,6.1461]
[1723159244464,6.1439,162.77,162.69,21.513]
[1723159244465,6.144,162.77,162.69,21.513]
[1723159244782,6.1436,162.77,162.71,6.1458]
[1723159245470,46.1417,162.81,162.69,15.3664]
[1723159245471,6.0717,162.81,162.69,15.3664]
[1723159245675,6.1433,162.78,162.71,6.1456]
[1723159245977,6.1433,162.78,162.72,6.1454]
[1723159246187,6.0717,162.81,162.69,15.3664]
[1723159246490,6.1434,162.78,162.66,48.3356588]
[1723159246663,2.39138521,162.82,162.71,15.3642]
[1723159246874,55.4229,162.84,162.71,15.3642]
[1723159247682,55.4229,162.84,162.72,45.0]
[1723159247683,15.3529,162.84,162.72,45.0]
[1723159248004,36.9268,162.86,162.74,15.3617]
[1723159248005,6.2255,162.86,162.74,15.3617]
[1723159248162,6.2255,162.86,162.75,45.0]
[1723159248488,6.1414,162.83,162.77,6.1436]
[1723159248698,6.1414,162.83,162.76,6.144]
[1723159249377,15.349,162.88,162.75,45.0]
[1723159249568,6.1429,162.79,162.75,45.0]
[1723159250476,6.1438,162.77,162.7,21.5109]
[1723159250688,30.7017,162.86,162.68,12.3444]
[1723159250689,55.4245,162.82,162.68,12.3444]
[1723159250861,55.4245,162.82,162.69,6.1465]
[1723159251258,55.4245,162.82,162.69,15.3663]
[1723159251680,6.1432,162.78,162.72,6.1455]
[1723159251901,6.1425,162.8,162.72,15.3636]
[1723159252080,6.1429,162.79,162.73,6.1451]
[1723159252276,6.1424,162.81,162.74,6.1447]
[1723159252482,6.1425,162.8,162.74,6.1447]
[1723159252798,6.1425,162.8,162.75,45.0]
[1723159253183,15.3535,162.83,162.72,15.3636]
[1723159253391,6.1428,162.8,162.74,6.1447]
[1723159253590,57.85059357,162.87,162.75,45.0]
[1723159253783,6.1421,162.81,162.75,6.1443]
[1723159253981,32.64,162.85,162.76,45.0]
[1723159254299,15.3527,162.84,162.73,38.7847]
[1723159254475,32.64,162.85,162.74,45.0]
[1723159254676,32.64,162.85,162.75,16.58908049]
[1723159254901,6.1421,162.81,162.76,45.0]
[1723159255081,32.64,162.83,162.74,45.0]
[1723159255281,6.144,162.76,162.7,6.146]
[1723159255476,6.1436,162.77,162.71,6.1458]
[1723159255688,32.64,162.79,162.71,15.3643]
[1723159255885,6.1432,162.78,162.72,7.37415568]
[1723159256096,6.144,162.76,162.71,21.51]
[1723159256290,6.1436,162.77,162.71,21.51]
[1723159256497,6.1432,162.78,162.72,6.1453]
[1723159256797,6.1432,162.78,162.73,45.0]
[1723159256987,6.1437,162.77,162.71,21.5101]
[1723159257183,6.1444,162.75,162.71,15.3643]
[1723159257385,6.1444,162.75,162.69,6.1465]
[1723159258203,32.64,162.77,162.68,6.1977]
[1723159258408,32.64,162.77,162.67,15.3676]
[1723159258409,6.1455,162.72,162.67,15.3676]
[1723159258587,6.1466,162.69,162.63,28.0035]
[1723159258792,6.1458,162.72,162.66,6.1477]
[1723159258995,6.1458,162.72,162.63,21.855]
[1723159258996,6.1459,162.71,162.64,6.1481]
[1723159259399,6.1463,162.7,162.64,6.1481]
[1723159259589,6.1459,162.71,162.65,6.1481]
[1723159259787,6.1463,162.7,162.63,28.0036]
[1723159260105,6.1466,162.69,162.63,21.52]
[1723159260299,6.1471,162.68,162.63,15.3714]
[1723159260508,46.4025,162.78,162.6,45.8256]
[1723159260509,6.1477,162.67,162.6,15.0768]
[1723159260686,2.37013449,162.73,162.66,15.3694]
[1723159260882,32.64,162.76,162.67,1.22943698]
[1723159261086,6.1454,162.73,162.67,6.1473]
[1723159261307,6.1454,162.73,162.61,30.7467]
[1723159261308,32.64,162.74,162.64,15.3704]